[Event "Titled Tuesday Blitz November 29 Early 2022"]
[White "Zemlyanskii, Ivan"]
[Black "Ginzburg, Yakov"]
[WhiteFideId "24249971"]
[BlackFideId "4157176"]
[WhiteElo "2107"]
[BlackElo "2305"]
[Result "0-1"]
[Round "07"]
[TimeControl "180+1"]
[Date "2022.11.30"]
[WhiteClock "0:00:01"]
[BlackClock "0:00:08"]

1. d4 {[%clk 0:02:59]}  d5 {[%clk 0:02:59]} 2. c4 {[%clk 0:03:00]}  c6 {[%clk 0:02:59]} 3. Nf3 {[%clk 0:03:00]}  Nf6 {[%clk 0:03:00]} 4. e3 {[%clk 0:03:01]}  a6 {[%clk 0:02:59]} 5. Nbd2 {[%clk 0:02:57]}  b5 {[%clk 0:02:59]} 6. b3 {[%clk 0:02:58]}  Bf5 {[%clk 0:02:58]} 7. Nh4 {[%clk 0:02:58]}  Bg4 {[%clk 0:02:57]} 8. Qc2 {[%clk 0:02:55]}  e6 {[%clk 0:02:57]} 9. h3 {[%clk 0:02:53]}  Bh5 {[%clk 0:02:56]} 10. g4 {[%clk 0:02:50]}  Bg6 {[%clk 0:02:56]} 11. Nxg6 {[%clk 0:02:50]}  hxg6 {[%clk 0:02:57]} 12. Bg2 {[%clk 0:02:51]}  Nbd7 {[%clk 0:02:56]} 13. Bb2 {[%clk 0:02:48]}  Bd6 {[%clk 0:02:56]} 14. c5 {[%clk 0:02:31]}  Be7 {[%clk 0:02:45]} 15. O-O-O {[%clk 0:02:32]}  a5 {[%clk 0:02:39]} 16. e4 {[%clk 0:02:19]}  dxe4 {[%clk 0:02:27]} 17. Nxe4 {[%clk 0:02:18]}  Nd5 {[%clk 0:02:27]} 18. a3 {[%clk 0:02:05]}  N7f6 {[%clk 0:02:26]} 19. Ng5 {[%clk 0:01:48]}  O-O {[%clk 0:02:12]} 20. Bf3 {[%clk 0:01:43]}  b4 {[%clk 0:01:53]} 21. a4 {[%clk 0:01:42]}  Rc8 {[%clk 0:01:50]} 22. h4 {[%clk 0:01:37]}  Nc3 {[%clk 0:01:49]} 23. Bxc3 {[%clk 0:01:34]}  bxc3 {[%clk 0:01:49]} 24. h5 {[%clk 0:01:26]}  Nd5 {[%clk 0:01:41]} 25. Ne4 {[%clk 0:01:04]}  Nb4 {[%clk 0:01:32]} 26. Qe2 {[%clk 0:01:03]}  c2 {[%clk 0:01:30]} 27. Rd2 {[%clk 0:00:59]}  Bg5 {[%clk 0:01:30]} 28. Nxg5 {[%clk 0:00:48]}  Qxg5 {[%clk 0:01:29]} 29. Qe3 {[%clk 0:00:49]}  Qxe3 {[%clk 0:01:22]} 30. fxe3 {[%clk 0:00:49]}  gxh5 {[%clk 0:01:17]} 31. gxh5 {[%clk 0:00:47]}  f5 {[%clk 0:01:16]} 32. Be2 {[%clk 0:00:44]}  f4 {[%clk 0:01:13]} 33. exf4 {[%clk 0:00:42]}  Rxf4 {[%clk 0:01:12]} 34. Bc4 {[%clk 0:00:43]}  Kf7 {[%clk 0:01:07]} 35. Re1 {[%clk 0:00:41]}  Re8 {[%clk 0:01:06]} 36. Rde2 {[%clk 0:00:37]}  Rxd4 {[%clk 0:01:01]} 37. Rf1+ {[%clk 0:00:23]}  Kg8 {[%clk 0:01:00]} 38. Rxe6 {[%clk 0:00:24]}  Rxe6 {[%clk 0:00:51]} 39. Bxe6+ {[%clk 0:00:25]}  Kh7 {[%clk 0:00:51]} 40. Bf5+ {[%clk 0:00:25]}  Kh6 {[%clk 0:00:51]} 41. Bxc2 {[%clk 0:00:26]}  Kxh5 {[%clk 0:00:45]} 42. Rf7 {[%clk 0:00:22]}  g5 {[%clk 0:00:37]} 43. Bf5 {[%clk 0:00:14]}  Kh4 {[%clk 0:00:35]} 44. Rg7 {[%clk 0:00:13]}  Rd5 {[%clk 0:00:35]} 45. Be6 {[%clk 0:00:10]}  Rxc5+ {[%clk 0:00:34]} 46. Kd2 {[%clk 0:00:10]}  Re5 {[%clk 0:00:32]} 47. Bc4 {[%clk 0:00:10]}  Kg3 {[%clk 0:00:32]} 48. Be2 {[%clk 0:00:07]}  Kf4 {[%clk 0:00:31]} 49. Rf7+ {[%clk 0:00:07]}  Rf5 {[%clk 0:00:31]} 50. Rg7 {[%clk 0:00:05]}  Ke4 {[%clk 0:00:27]} 51. Re7+ {[%clk 0:00:05]}  Kd4 {[%clk 0:00:27]} 52. Ra7 {[%clk 0:00:03]}  Rf2 {[%clk 0:00:20]} 53. Ke1 {[%clk 0:00:04]}  Rf5 {[%clk 0:00:18]} 54. Kd2 {[%clk 0:00:03]}  Rd5 {[%clk 0:00:18]} 55. Bc4 {[%clk 0:00:02]}  Re5 {[%clk 0:00:16]} 56. Rd7+ {[%clk 0:00:02]}  Nd5 {[%clk 0:00:15]} 57. Ra7 {[%clk 0:00:02]}  Nf4 {[%clk 0:00:15]} 58. Rd7+ {[%clk 0:00:02]}  Kc5 {[%clk 0:00:15]} 59. Kc3 {[%clk 0:00:03]}  g4 {[%clk 0:00:10]} 60. Rg7 {[%clk 0:00:03]}  Re3+ {[%clk 0:00:10]} 61. Kd2 {[%clk 0:00:04]}  Rg3 {[%clk 0:00:10]} 62. Rg5+ {[%clk 0:00:02]}  Kd4 {[%clk 0:00:10]} 63. Rxa5 {[%clk 0:00:02]}  Rg2+ {[%clk 0:00:10]} 64. Ke1 {[%clk 0:00:02]}  Rb2 {[%clk 0:00:09]} 65. Rg5 {[%clk 0:00:02]}  Ng2+ {[%clk 0:00:09]} 66. Kd1 {[%clk 0:00:02]}  Ne3+ {[%clk 0:00:10]} 67. Kc1 {[%clk 0:00:03]}  Kc3 {[%clk 0:00:09]} 68. a5 {[%clk 0:00:02]}  Rc2+ {[%clk 0:00:08]} 69. Kb1 {[%clk 0:00:02]}  Rb2+ {[%clk 0:00:09]} 70. Kc1 {[%clk 0:00:03]}  Ra2 {[%clk 0:00:09]} 71. Kb1 {[%clk 0:00:02]}  Ra3 {[%clk 0:00:09]} 72. Re5 {[%clk 0:00:02]}  Nc2 {[%clk 0:00:08]} 73. Kc1 {[%clk 0:00:01]}  Ra1# {[%clk 0:00:08]} 0-1


[Site "https://www.chess.com"]

[Event "Titled Tuesday Blitz November 29 Early 2022"]
[White "Adel, Sara"]
[Black "Fawzy, Adham"]
[WhiteFideId "10616764"]
[BlackFideId "10613129"]
[WhiteElo "1994"]
[BlackElo "2541"]
[Result "0-1"]
[Round "08"]
[TimeControl "180+1"]
[Date "2022.11.30"]
[WhiteClock "0:00:10"]
[BlackClock "0:00:39"]

1. e4 {[%clk 0:03:00]}  c5 {[%clk 0:02:59]} 2. Nc3 {[%clk 0:03:00]}  d6 {[%clk 0:02:59]} 3. f4 {[%clk 0:02:59]}  g6 {[%clk 0:02:59]} 4. Nf3 {[%clk 0:02:59]}  Bg7 {[%clk 0:02:59]} 5. Bc4 {[%clk 0:03:00]}  Nc6 {[%clk 0:02:59]} 6. O-O {[%clk 0:02:59]}  e6 {[%clk 0:02:59]} 7. Qe1 {[%clk 0:02:58]}  Nge7 {[%clk 0:02:57]} 8. d3 {[%clk 0:02:58]}  O-O {[%clk 0:02:57]} 9. f5 {[%clk 0:02:51]}  gxf5 {[%clk 0:02:56]} 10. Qh4 {[%clk 0:02:44]}  fxe4 {[%clk 0:02:55]} 11. dxe4 {[%clk 0:02:44]}  Ng6 {[%clk 0:02:54]} 12. Qh5 {[%clk 0:02:44]}  Nce5 {[%clk 0:02:34]} 13. Ng5 {[%clk 0:02:05]}  h6 {[%clk 0:02:22]} 14. Nxf7 {[%clk 0:01:57]}  Rxf7 {[%clk 0:02:07]} 15. Rxf7 {[%clk 0:01:55]}  Kxf7 {[%clk 0:02:07]} 16. Bxh6 {[%clk 0:01:55]}  Qh4 {[%clk 0:01:36]} 17. Rf1+ {[%clk 0:01:38]}  Kg8 {[%clk 0:01:35]} 18. Qf5 {[%clk 0:00:48]}  Qxh6 {[%clk 0:01:15]} 19. Bxe6+ {[%clk 0:00:45]}  Bxe6 {[%clk 0:01:15]} 20. Qxe6+ {[%clk 0:00:46]}  Kh7 {[%clk 0:01:14]} 21. Nd5 {[%clk 0:00:39]}  Rf8 {[%clk 0:00:52]} 22. Rxf8 {[%clk 0:00:18]}  Nxf8 {[%clk 0:00:51]} 23. Qe7 {[%clk 0:00:11]}  Ng4 {[%clk 0:00:40]} 24. h3 {[%clk 0:00:10]}  Qc1# {[%clk 0:00:39]} 0-1


[Site "https://www.chess.com"]

[Event "Titled Tuesday Blitz November 29 Early 2022"]
[White "Begunov, Konstantin"]
[Black "Roque Sola, Jose Luis"]
[WhiteFideId "4118510"]
[BlackFideId "5120390"]
[WhiteElo "2140"]
[BlackElo "2117"]
[Result "1-0"]
[Round "08"]
[TimeControl "180+1"]
[Date "2022.11.30"]
[WhiteClock "0:00:28"]
[BlackClock "0:00:06"]

1. d4 {[%clk 0:03:00]}  Nf6 {[%clk 0:02:54]} 2. c4 {[%clk 0:03:00]}  g6 {[%clk 0:02:51]} 3. f3 {[%clk 0:03:00]}  d5 {[%clk 0:02:51]} 4. cxd5 {[%clk 0:03:01]}  Nxd5 {[%clk 0:02:51]} 5. e4 {[%clk 0:03:01]}  Nb6 {[%clk 0:02:44]} 6. Nc3 {[%clk 0:03:01]}  Bg7 {[%clk 0:02:44]} 7. Be3 {[%clk 0:03:02]}  O-O {[%clk 0:02:42]} 8. Qd2 {[%clk 0:03:02]}  Nc6 {[%clk 0:02:38]} 9. O-O-O {[%clk 0:02:59]}  Na5 {[%clk 0:02:26]} 10. b3 {[%clk 0:02:56]}  Nc6 {[%clk 0:01:49]} 11. h4 {[%clk 0:02:54]}  a5 {[%clk 0:01:49]} 12. Bb5 {[%clk 0:02:37]}  Nb4 {[%clk 0:01:41]} 13. h5 {[%clk 0:02:26]}  c6 {[%clk 0:01:41]} 14. Be2 {[%clk 0:02:16]}  a4 {[%clk 0:01:33]} 15. a3 {[%clk 0:02:07]}  axb3 {[%clk 0:01:08]} 16. axb4 {[%clk 0:02:07]}  Ra1+ {[%clk 0:01:00]} 17. Kb2 {[%clk 0:02:00]}  Na4+ {[%clk 0:00:59]} 18. Nxa4 {[%clk 0:01:57]}  Ra2+ {[%clk 0:00:58]} 19. Kxb3 {[%clk 0:01:56]}  Rxd2 {[%clk 0:00:59]} 20. Rxd2 {[%clk 0:01:57]}  Be6+ {[%clk 0:00:58]} 21. Kc3 {[%clk 0:01:29]}  Qa8 {[%clk 0:00:52]} 22. Bd1 {[%clk 0:01:22]}  b5 {[%clk 0:00:50]} 23. Nc5 {[%clk 0:01:21]}  Qa3+ {[%clk 0:00:48]} 24. Nb3 {[%clk 0:01:02]}  Bc4 {[%clk 0:00:44]} 25. Ne2 {[%clk 0:00:52]}  Rd8 {[%clk 0:00:30]} 26. Bc2 {[%clk 0:00:47]}  Bxe2 {[%clk 0:00:23]} 27. Ra1 {[%clk 0:00:35]}  Bxd4+ {[%clk 0:00:07]} 28. Bxd4 {[%clk 0:00:29]}  Qxa1+ {[%clk 0:00:06]} 29. Nxa1 {[%clk 0:00:28]} 1-0


[Site "https://www.chess.com"]

[Event "Titled Tuesday Blitz November 29 Early 2022"]
[White "Berezin, Viktor"]
[Black "Aldokhin, Ivan"]
[WhiteFideId "14107872"]
[BlackFideId "24115720"]
[WhiteElo "2310"]
[BlackElo "2313"]
[Result "1-0"]
[Round "08"]
[TimeControl "180+1"]
[Date "2022.11.30"]
[WhiteClock "0:00:09"]
[BlackClock "0:00:02"]

1. Nf3 {[%clk 0:03:00]}  Nf6 {[%clk 0:02:59]} 2. c4 {[%clk 0:03:00]}  g6 {[%clk 0:03:00]} 3. g3 {[%clk 0:03:01]}  Bg7 {[%clk 0:03:00]} 4. Bg2 {[%clk 0:03:02]}  d6 {[%clk 0:03:01]} 5. O-O {[%clk 0:03:02]}  O-O {[%clk 0:03:02]} 6. Nc3 {[%clk 0:03:03]}  Nc6 {[%clk 0:03:01]} 7. d3 {[%clk 0:03:03]}  e6 {[%clk 0:02:59]} 8. Rb1 {[%clk 0:03:04]}  d5 {[%clk 0:02:59]} 9. Nd2 {[%clk 0:03:02]}  a5 {[%clk 0:02:52]} 10. a3 {[%clk 0:03:00]}  Qd6 {[%clk 0:02:34]} 11. Nb5 {[%clk 0:02:57]}  Qe7 {[%clk 0:02:31]} 12. Qc2 {[%clk 0:02:26]}  Rd8 {[%clk 0:02:14]} 13. b3 {[%clk 0:02:22]}  d4 {[%clk 0:02:08]} 14. Qb2 {[%clk 0:01:57]}  e5 {[%clk 0:02:05]} 15. b4 {[%clk 0:01:56]}  axb4 {[%clk 0:01:48]} 16. axb4 {[%clk 0:01:57]}  Bg4 {[%clk 0:01:49]} 17. Ne4 {[%clk 0:01:53]}  Nxe4 {[%clk 0:01:34]} 18. Bxe4 {[%clk 0:01:54]}  Bf8 {[%clk 0:01:30]} 19. c5 {[%clk 0:01:41]}  Ra4 {[%clk 0:01:08]} 20. Bd2 {[%clk 0:01:29]}  Bxe2 {[%clk 0:01:04]} 21. Rfe1 {[%clk 0:01:29]}  Bg4 {[%clk 0:01:02]} 22. h4 {[%clk 0:00:58]}  Rda8 {[%clk 0:00:56]} 23. Bg5 {[%clk 0:00:51]}  f6 {[%clk 0:00:52]} 24. Bd2 {[%clk 0:00:48]}  Qd7 {[%clk 0:00:43]} 25. Ra1 {[%clk 0:00:40]}  Rxa1 {[%clk 0:00:19]} 26. Rxa1 {[%clk 0:00:40]}  Rxa1+ {[%clk 0:00:19]} 27. Qxa1 {[%clk 0:00:41]}  Nxb4 {[%clk 0:00:20]} 28. Nxc7 {[%clk 0:00:28]}  Qxc7 {[%clk 0:00:15]} 29. Bxb4 {[%clk 0:00:27]}  Bd7 {[%clk 0:00:07]} 30. Qa2+ {[%clk 0:00:26]}  Kg7 {[%clk 0:00:04]} 31. h5 {[%clk 0:00:24]}  Bc6 {[%clk 0:00:03]} 32. h6+ {[%clk 0:00:19]}  Kxh6 {[%clk 0:00:04]} 33. Qg8 {[%clk 0:00:19]}  Qg7 {[%clk 0:00:03]} 34. Qe6 {[%clk 0:00:17]}  g5 {[%clk 0:00:01]} 35. Bxc6 {[%clk 0:00:15]}  bxc6 {[%clk 0:00:02]} 36. Qxc6 {[%clk 0:00:16]}  Qg6 {[%clk 0:00:02]} 37. Qd5 {[%clk 0:00:15]}  Qxd3 {[%clk 0:00:02]} 38. Qf7 {[%clk 0:00:12]}  Bg7 {[%clk 0:00:02]} 39. g4 {[%clk 0:00:09]}  Qb1+ {[%clk 0:00:02]} 40. Kh2 {[%clk 0:00:08]}  Qg6 {[%clk 0:00:03]} 41. Qxg6+ {[%clk 0:00:07]}  Kxg6 {[%clk 0:00:03]} 42. c6 {[%clk 0:00:08]}  f5 {[%clk 0:00:03]} 43. gxf5+ {[%clk 0:00:08]}  Kxf5 {[%clk 0:00:03]} 44. c7 {[%clk 0:00:09]}  Ke4 {[%clk 0:00:02]} 45. c8=Q {[%clk 0:00:09]} 1-0


[Site "https://www.chess.com"]

[Event "Titled Tuesday Blitz November 29 Early 2022"]
[White "Buksa, Nataliya"]
[Black "Forgacs, Attila Jr."]
[WhiteFideId "14123622"]
[BlackFideId "773654"]
[WhiteElo "2313"]
[BlackElo "2168"]
[Result "1-0"]
[Round "08"]
[TimeControl "180+1"]
[Date "2022.11.30"]
[WhiteClock "0:00:46"]
[BlackClock "0:00:01"]

1. d4 {[%clk 0:03:00]}  Nf6 {[%clk 0:02:59]} 2. Nc3 {[%clk 0:03:00]}  d5 {[%clk 0:02:59]} 3. Bf4 {[%clk 0:03:00]}  g6 {[%clk 0:02:58]} 4. e3 {[%clk 0:03:00]}  Bg7 {[%clk 0:02:58]} 5. h4 {[%clk 0:03:01]}  h5 {[%clk 0:02:58]} 6. Nf3 {[%clk 0:03:00]}  O-O {[%clk 0:02:58]} 7. Be2 {[%clk 0:03:00]}  c5 {[%clk 0:02:56]} 8. Qd2 {[%clk 0:02:59]}  cxd4 {[%clk 0:02:50]} 9. exd4 {[%clk 0:02:59]}  Nc6 {[%clk 0:02:51]} 10. O-O {[%clk 0:02:59]}  Bf5 {[%clk 0:02:49]} 11. Bd3 {[%clk 0:02:58]}  Bxd3 {[%clk 0:02:46]} 12. Qxd3 {[%clk 0:02:57]}  Rc8 {[%clk 0:02:46]} 13. a3 {[%clk 0:02:54]}  Qd7 {[%clk 0:02:38]} 14. Ne2 {[%clk 0:02:53]}  Ne4 {[%clk 0:02:35]} 15. c3 {[%clk 0:02:52]}  Qg4 {[%clk 0:02:30]} 16. Bg3 {[%clk 0:02:50]}  Nxg3 {[%clk 0:02:21]} 17. Nxg3 {[%clk 0:02:49]}  Bf6 {[%clk 0:02:19]} 18. Qb5 {[%clk 0:02:43]}  Qd7 {[%clk 0:02:11]} 19. Rae1 {[%clk 0:02:41]}  a6 {[%clk 0:02:11]} 20. Qb3 {[%clk 0:02:38]}  Na5 {[%clk 0:02:05]} 21. Qc2 {[%clk 0:02:37]}  Nc4 {[%clk 0:02:02]} 22. a4 {[%clk 0:02:36]}  Qg4 {[%clk 0:01:57]} 23. Qb3 {[%clk 0:02:27]}  Qd7 {[%clk 0:01:44]} 24. Re2 {[%clk 0:02:21]}  b6 {[%clk 0:01:32]} 25. Rfe1 {[%clk 0:02:20]}  Qg4 {[%clk 0:01:32]} 26. Nf1 {[%clk 0:02:12]}  Rfe8 {[%clk 0:01:23]} 27. Ne3 {[%clk 0:02:08]}  Nxe3 {[%clk 0:01:21]} 28. Rxe3 {[%clk 0:02:08]}  e6 {[%clk 0:01:14]} 29. Qxb6 {[%clk 0:02:06]}  Rb8 {[%clk 0:01:06]} 30. Qc6 {[%clk 0:02:06]}  Rec8 {[%clk 0:01:02]} 31. Qxa6 {[%clk 0:02:06]}  Bxh4 {[%clk 0:01:02]} 32. Nxh4 {[%clk 0:02:02]}  Qxh4 {[%clk 0:01:02]} 33. b4 {[%clk 0:02:02]}  Ra8 {[%clk 0:01:00]} 34. Qb7 {[%clk 0:02:00]}  Rcb8 {[%clk 0:00:58]} 35. Qc7 {[%clk 0:02:00]}  Rc8 {[%clk 0:00:57]} 36. Qb6 {[%clk 0:01:46]}  Rxa4 {[%clk 0:00:50]} 37. Rxe6 {[%clk 0:01:45]}  Ra2 {[%clk 0:00:45]} 38. g3 {[%clk 0:01:28]}  Qg5 {[%clk 0:00:16]} 39. R6e5 {[%clk 0:01:17]}  Qg4 {[%clk 0:00:14]} 40. Qb7 {[%clk 0:01:10]}  Rxc3 {[%clk 0:00:12]} 41. Qb8+ {[%clk 0:01:06]}  Kh7 {[%clk 0:00:10]} 42. Re8 {[%clk 0:01:07]}  Rxg3+ {[%clk 0:00:10]} 43. Qxg3 {[%clk 0:01:05]}  Qxd4 {[%clk 0:00:09]} 44. R8e7 {[%clk 0:01:01]}  Qf6 {[%clk 0:00:08]} 45. R1e2 {[%clk 0:00:54]}  Ra1+ {[%clk 0:00:08]} 46. Kg2 {[%clk 0:00:54]}  h4 {[%clk 0:00:07]} 47. Qg4 {[%clk 0:00:49]}  h3+ {[%clk 0:00:02]} 48. Qxh3+ {[%clk 0:00:48]}  Kg7 {[%clk 0:00:02]} 49. Qg3 {[%clk 0:00:46]}  Rd1 {[%clk 0:00:01]} 50. Qe5 {[%clk 0:00:46]} 1-0


[Site "https://www.chess.com"]

[Event "Titled Tuesday Blitz November 29 Early 2022"]
[White "Buscar, Michael"]
[Black "Kuznetsova, Olga"]
[WhiteFideId "2603616"]
[BlackFideId "4191323"]
[WhiteElo "2010"]
[BlackElo "2134"]
[Result "0-1"]
[Round "08"]
[TimeControl "180+1"]
[Date "2022.11.30"]
[WhiteClock "0:00:06"]
[BlackClock "0:00:26"]

1. e4 {[%clk 0:02:58]}  e5 {[%clk 0:02:59]} 2. Nf3 {[%clk 0:02:58]}  Nf6 {[%clk 0:02:59]} 3. Nxe5 {[%clk 0:02:55]}  d6 {[%clk 0:02:59]} 4. Nf3 {[%clk 0:02:54]}  Nxe4 {[%clk 0:02:59]} 5. d4 {[%clk 0:02:54]}  d5 {[%clk 0:02:59]} 6. Nc3 {[%clk 0:02:50]}  Nxc3 {[%clk 0:02:58]} 7. bxc3 {[%clk 0:02:49]}  Bd6 {[%clk 0:02:56]} 8. Bd3 {[%clk 0:02:46]}  O-O {[%clk 0:02:55]} 9. O-O {[%clk 0:02:46]}  h6 {[%clk 0:02:53]} 10. c4 {[%clk 0:02:43]}  dxc4 {[%clk 0:02:52]} 11. Bxc4 {[%clk 0:02:43]}  Qf6 {[%clk 0:02:52]} 12. h3 {[%clk 0:02:37]}  Nc6 {[%clk 0:02:52]} 13. c3 {[%clk 0:02:37]}  Bf5 {[%clk 0:02:49]} 14. Re1 {[%clk 0:02:33]}  Rfe8 {[%clk 0:02:48]} 15. Be3 {[%clk 0:02:29]}  a6 {[%clk 0:02:40]} 16. Bd3 {[%clk 0:02:13]}  Be4 {[%clk 0:02:29]} 17. Bxe4 {[%clk 0:02:00]}  Rxe4 {[%clk 0:02:29]} 18. Nd2 {[%clk 0:01:59]}  Re7 {[%clk 0:02:26]} 19. Qb3 {[%clk 0:01:49]}  Na5 {[%clk 0:02:12]} 20. Qd5 {[%clk 0:01:48]}  Nc6 {[%clk 0:02:05]} 21. Rab1 {[%clk 0:01:46]}  Rd8 {[%clk 0:01:54]} 22. Ne4 {[%clk 0:01:30]}  Qg6 {[%clk 0:01:50]} 23. Nxd6 {[%clk 0:01:29]}  Rxd6 {[%clk 0:01:49]} 24. Qf3 {[%clk 0:01:14]}  b5 {[%clk 0:01:49]} 25. Bf4 {[%clk 0:01:11]}  Rde6 {[%clk 0:01:48]} 26. Be3 {[%clk 0:01:00]}  Rf6 {[%clk 0:01:39]} 27. Qg4 {[%clk 0:00:54]}  Qc2 {[%clk 0:01:32]} 28. Qe2 {[%clk 0:00:48]}  Qxc3 {[%clk 0:01:27]} 29. Rbc1 {[%clk 0:00:39]}  Qa5 {[%clk 0:01:02]} 30. Qg4 {[%clk 0:00:34]}  Qxa2 {[%clk 0:00:57]} 31. d5 {[%clk 0:00:27]}  Qxd5 {[%clk 0:00:56]} 32. Bxh6 {[%clk 0:00:19]}  Rxe1+ {[%clk 0:00:52]} 33. Rxe1 {[%clk 0:00:18]}  Rxh6 {[%clk 0:00:52]} 34. Re8+ {[%clk 0:00:18]}  Kh7 {[%clk 0:00:52]} 35. Qc8 {[%clk 0:00:18]}  Qd1+ {[%clk 0:00:44]} 36. Kh2 {[%clk 0:00:17]}  Qd6+ {[%clk 0:00:44]} 37. g3 {[%clk 0:00:17]}  Re6 {[%clk 0:00:43]} 38. Rh8+ {[%clk 0:00:16]}  Kg6 {[%clk 0:00:43]} 39. Qg8 {[%clk 0:00:16]}  Kf6 {[%clk 0:00:39]} 40. Rh7 {[%clk 0:00:15]}  Ke7 {[%clk 0:00:25]} 41. Rxg7 {[%clk 0:00:15]}  Rf6 {[%clk 0:00:25]} 42. Kg1 {[%clk 0:00:04]}  Qd1+ {[%clk 0:00:25]} 43. Kg2 {[%clk 0:00:04]}  Qf3+ {[%clk 0:00:25]} 44. Kg1 {[%clk 0:00:05]}  Qxf2+ {[%clk 0:00:25]} 45. Kh1 {[%clk 0:00:05]}  Qf1+ {[%clk 0:00:26]} 46. Kh2 {[%clk 0:00:06]}  Rf2# {[%clk 0:00:26]} 0-1


[Site "https://www.chess.com"]

[Event "Titled Tuesday Blitz November 29 Early 2022"]
[White "Clawitter, Craig"]
[Black "Osinovsky, Stepan"]
[WhiteFideId "2023105"]
[BlackFideId "4157354"]
[WhiteElo "2270"]
[BlackElo "2222"]
[Result "0-1"]
[Round "08"]
[TimeControl "180+1"]
[Date "2022.11.30"]
[WhiteClock "0:00:04"]
[BlackClock "0:00:50"]

1. e4 {[%clk 0:03:00]}  e5 {[%clk 0:02:59]} 2. Nf3 {[%clk 0:03:01]}  Nc6 {[%clk 0:02:59]} 3. Bb5 {[%clk 0:03:01]}  a6 {[%clk 0:02:59]} 4. Ba4 {[%clk 0:03:02]}  Nf6 {[%clk 0:02:59]} 5. O-O {[%clk 0:03:02]}  Be7 {[%clk 0:02:59]} 6. d3 {[%clk 0:03:03]}  b5 {[%clk 0:02:58]} 7. Bb3 {[%clk 0:03:03]}  O-O {[%clk 0:02:58]} 8. Nc3 {[%clk 0:03:04]}  Re8 {[%clk 0:02:55]} 9. a4 {[%clk 0:02:48]}  b4 {[%clk 0:02:53]} 10. Nd5 {[%clk 0:02:47]}  h6 {[%clk 0:02:52]} 11. a5 {[%clk 0:02:45]}  Bf8 {[%clk 0:02:49]} 12. Bd2 {[%clk 0:02:40]}  Nd4 {[%clk 0:02:41]} 13. Nxd4 {[%clk 0:02:36]}  exd4 {[%clk 0:02:42]} 14. Bxb4 {[%clk 0:02:29]}  Nxd5 {[%clk 0:02:34]} 15. Bxf8 {[%clk 0:02:29]}  Nf4 {[%clk 0:02:30]} 16. Qg4 {[%clk 0:02:09]}  Ng6 {[%clk 0:02:17]} 17. Qxg6 {[%clk 0:01:03]}  Rxf8 {[%clk 0:02:13]} 18. f4 {[%clk 0:00:51]}  d5 {[%clk 0:02:06]} 19. Qg3 {[%clk 0:00:51]}  dxe4 {[%clk 0:02:04]} 20. dxe4 {[%clk 0:00:52]}  c5 {[%clk 0:02:04]} 21. f5 {[%clk 0:00:44]}  Qg5 {[%clk 0:01:43]} 22. Qd6 {[%clk 0:00:34]}  Bb7 {[%clk 0:01:41]} 23. Bd5 {[%clk 0:00:22]}  Rfd8 {[%clk 0:01:18]} 24. Qxc5 {[%clk 0:00:20]}  Bxd5 {[%clk 0:01:16]} 25. exd5 {[%clk 0:00:17]}  Qe3+ {[%clk 0:01:11]} 26. Kh1 {[%clk 0:00:17]}  Rac8 {[%clk 0:01:12]} 27. Qb6 {[%clk 0:00:11]}  Rxd5 {[%clk 0:01:07]} 28. f6 {[%clk 0:00:11]}  Rxc2 {[%clk 0:00:54]} 29. Rae1 {[%clk 0:00:10]}  Qd2 {[%clk 0:00:52]} 30. Qb8+ {[%clk 0:00:08]}  Kh7 {[%clk 0:00:51]} 31. Qg3 {[%clk 0:00:09]}  Rg5 {[%clk 0:00:50]} 32. fxg7 {[%clk 0:00:05]}  Rxg3 {[%clk 0:00:50]} 33. g8=Q+ {[%clk 0:00:04]}  Rxg8 {[%clk 0:00:49]} 34. Rxf7+ {[%clk 0:00:04]}  Rg7 {[%clk 0:00:50]} 35. Rxg7+ {[%clk 0:00:05]}  Kxg7 {[%clk 0:00:50]} 36. Re7+ {[%clk 0:00:04]} 0-1


[Site "https://www.chess.com"]

[Event "Titled Tuesday Blitz November 29 Early 2022"]
[White "Czopor, Maciej"]
[Black "Papasimakopoulos, Alexandros"]
[WhiteFideId "21805431"]
[BlackFideId "4244125"]
[WhiteElo "2324"]
[BlackElo "2365"]
[Result "0-1"]
[Round "08"]
[TimeControl "180+1"]
[Date "2022.11.30"]
[WhiteClock "0:00:27"]
[BlackClock "0:00:06"]

1. c4 {[%clk 0:03:00]}  b6 {[%clk 0:02:04]} 2. Nc3 {[%clk 0:02:59]}  Bb7 {[%clk 0:02:04]} 3. e4 {[%clk 0:02:55]}  c5 {[%clk 0:02:04]} 4. Nf3 {[%clk 0:02:54]}  Nc6 {[%clk 0:02:03]} 5. d4 {[%clk 0:02:53]}  cxd4 {[%clk 0:02:03]} 6. Nxd4 {[%clk 0:02:54]}  g6 {[%clk 0:01:58]} 7. Be3 {[%clk 0:02:52]}  Bg7 {[%clk 0:01:59]} 8. Be2 {[%clk 0:02:52]}  d6 {[%clk 0:01:52]} 9. Nc2 {[%clk 0:02:51]}  Nf6 {[%clk 0:01:52]} 10. O-O {[%clk 0:02:51]}  O-O {[%clk 0:01:52]} 11. Rc1 {[%clk 0:02:51]}  Rc8 {[%clk 0:01:50]} 12. b3 {[%clk 0:02:50]}  Nd7 {[%clk 0:01:48]} 13. Nd5 {[%clk 0:02:47]}  Nc5 {[%clk 0:01:40]} 14. f3 {[%clk 0:02:39]}  g5 {[%clk 0:01:40]} 15. Bxg5 {[%clk 0:02:34]}  h6 {[%clk 0:01:31]} 16. Bh4 {[%clk 0:02:33]}  Ne6 {[%clk 0:01:23]} 17. f4 {[%clk 0:02:26]}  Nc5 {[%clk 0:01:21]} 18. Bf3 {[%clk 0:02:20]}  Re8 {[%clk 0:01:19]} 19. Kh1 {[%clk 0:02:16]}  Ne6 {[%clk 0:01:11]} 20. Bg4 {[%clk 0:02:12]}  Rb8 {[%clk 0:01:05]} 21. b4 {[%clk 0:02:10]}  Ncd4 {[%clk 0:00:56]} 22. Nxd4 {[%clk 0:02:09]}  Nxd4 {[%clk 0:00:56]} 23. Qd3 {[%clk 0:01:50]}  a6 {[%clk 0:00:46]} 24. Rcd1 {[%clk 0:01:45]}  b5 {[%clk 0:00:46]} 25. Qe3 {[%clk 0:01:36]}  Ne6 {[%clk 0:00:25]} 26. f5 {[%clk 0:01:30]}  Ng5 {[%clk 0:00:25]} 27. Bxg5 {[%clk 0:01:23]}  hxg5 {[%clk 0:00:26]} 28. Qxg5 {[%clk 0:01:24]}  Bxd5 {[%clk 0:00:19]} 29. cxd5 {[%clk 0:01:24]}  Rc8 {[%clk 0:00:19]} 30. f6 {[%clk 0:01:07]}  exf6 {[%clk 0:00:19]} 31. Qh5 {[%clk 0:01:08]}  Rc3 {[%clk 0:00:17]} 32. Bf5 {[%clk 0:01:08]}  Qc7 {[%clk 0:00:15]} 33. h3 {[%clk 0:00:54]}  Kf8 {[%clk 0:00:15]} 34. Rf4 {[%clk 0:00:48]}  Rg3 {[%clk 0:00:14]} 35. Rf3 {[%clk 0:00:42]}  Rg5 {[%clk 0:00:13]} 36. Qh4 {[%clk 0:00:43]}  Qc2 {[%clk 0:00:13]} 37. Rdf1 {[%clk 0:00:41]}  Qxa2 {[%clk 0:00:11]} 38. R3f2 {[%clk 0:00:39]}  Qb3 {[%clk 0:00:10]} 39. Qf4 {[%clk 0:00:38]}  Qxb4 {[%clk 0:00:10]} 40. h4 {[%clk 0:00:37]}  Rxf5 {[%clk 0:00:05]} 41. Qxf5 {[%clk 0:00:34]}  Rxe4 {[%clk 0:00:05]} 42. Rf4 {[%clk 0:00:33]}  Rxf4 {[%clk 0:00:04]} 43. Rxf4 {[%clk 0:00:31]}  Qc3 {[%clk 0:00:04]} 44. Qc8+ {[%clk 0:00:28]}  Qxc8 {[%clk 0:00:03]} 45. Rf3 {[%clk 0:00:25]}  Qc1+ {[%clk 0:00:04]} 46. Kh2 {[%clk 0:00:25]}  f5 {[%clk 0:00:04]} 47. Rxf5 {[%clk 0:00:25]}  Be5+ {[%clk 0:00:05]} 48. Kh3 {[%clk 0:00:25]}  Qh1+ {[%clk 0:00:05]} 49. Kg4 {[%clk 0:00:25]}  Qxg2+ {[%clk 0:00:06]} 50. Kh5 {[%clk 0:00:26]}  b4 {[%clk 0:00:05]} 51. Rg5 {[%clk 0:00:26]}  Qf3+ {[%clk 0:00:04]} 52. Kh6 {[%clk 0:00:27]}  Qf4 {[%clk 0:00:04]} 53. h5 {[%clk 0:00:27]}  Bf6 {[%clk 0:00:05]} 54. Kh7 {[%clk 0:00:28]}  Qxg5 {[%clk 0:00:05]} 55. h6 {[%clk 0:00:27]}  Qg6# {[%clk 0:00:06]} 0-1


[Site "https://www.chess.com"]